bitfinex/quotes_ETHUSD_20240719
["timestamp","ask_amount","ask_price","bid_price","bid_amount"]
[1721351459455,0.00776712,3405.6,3404.8,5.40685]
[1721351459897,0.00776712,3405.6,3405.0,2.93685]
[1721351460205,0.00733214,3405.5,3405.0,2.93685]
[1721351460499,0.68048707,3405.8,3405.0,2.93685]
[1721351460703,0.00704543,3405.4,3405.2,2.93666]
[1721351460904,0.68048707,3405.8,3405.2,2.93666]
[1721351461516,0.00746065,3405.7,3405.3,2.93658]
[1721351461811,3.0,3406.2,3405.4,2.93649]
[1721351462106,0.59358,3406.1,3405.4,2.93649]
[1721351462301,0.59358,3406.1,3405.5,2.9364]
[1721351462705,0.59358,3406.1,3404.9,2.93686]
[1721351463007,2.2776,3405.8,3404.6,0.61613111]
[1721351463169,2.2776,3405.8,3404.6,2.93714]
[1721351463170,3.385,3405.4,3404.6,2.93714]
[1721351463369,0.04850239,3405.3,3404.7,2.93711]
[1721351463910,0.04850239,3405.3,3404.6,2.93714]
[1721351463911,2.93623,3405.8,3404.8,2.93702]
[1721351464113,0.04870979,3405.2,3404.8,2.93702]
[1721351464409,2.93597,3406.1,3405.1,2.9367]
[1721351464583,5.936,3406.0,3405.1,2.9367]
[1721351465011,3.00725509,3405.9,3405.1,2.9367]
[1721351465508,3.00725509,3405.9,3405.1,5.2765]
[1721351465682,3.00725509,3405.9,3405.3,2.93659]
[1721351466003,3.00725509,3405.9,3405.2,2.93662]
[1721351466004,0.00725509,3405.9,3405.4,2.93649]
[1721351466207,6.32065,3406.4,3405.4,2.93649]
[1721351466407,0.873705,3406.3,3405.1,5.27654]
[1721351466582,0.00869855,3406.3,3405.7,2.93618]
[1721351466773,0.00869855,3406.3,3405.5,2.93639]
[1721351466975,2.9357,3406.4,3405.5,2.93639]
[1721351467185,0.00781886,3406.2,3405.7,2.93622]
[1721351467379,0.00795722,3406.3,3405.5,2.93635]
[1721351467615,0.00797704,3406.1,3405.5,2.93635]
[1721351467907,3.385,3406.9,3405.7,2.4544]
[1721351468082,3.385,3406.9,3406.1,2.9359]
[1721351468412,3.385,3406.9,3405.7,2.4544]
[1721351468413,0.925517,3406.8,3405.7,2.4544]
[1721351468584,0.925517,3406.8,3405.9,2.93605]
[1721351468786,2.93534,3406.8,3405.7,2.4544]
[1721351469082,2.93562,3406.5,3405.7,2.4544]
[1721351469681,6.32024,3406.9,3405.7,5.3906]
[1721351469881,6.32024,3406.9,3406.0,2.93598]
[1721351470489,2.93524,3406.9,3406.0,2.93598]
[1721351470805,0.587038,3406.8,3406.1,2.93583]
[1721351470978,3.385,3406.9,3406.1,2.93583]
[1721351471179,2.93504,3407.1,3406.2,2.93577]
[1721351471377,0.46043491,3407.3,3406.6,5.23449]
[1721351471604,0.46043491,3407.3,3406.6,2.2991]
[1721351471905,2.9348,3407.4,3406.6,2.2991]
[1721351472125,0.925447,3407.3,3406.8,2.93523]
[1721351472405,3.385,3407.6,3406.8,2.93523]
[1721351472602,2.93449,3407.8,3406.9,2.93519]
[1721351472792,5.86902,3407.8,3406.9,2.93519]
[1721351472992,3.385,3407.5,3406.7,2.93533]
[1721351473198,2.93449,3407.8,3406.7,2.93533]
[1721351473394,2.93466,3407.6,3406.7,2.93533]
[1721351473574,3.0,3407.7,3406.7,2.93533]
[1721351473773,3.0,3407.7,3406.9,2.93521]
[1721351473979,3.0,3407.7,3407.0,2.93512]
[1721351474276,3.0,3407.9,3406.7,2.93537]
[1721351474476,2.9345,3407.8,3406.7,3.458817]
[1721351474776,2.93454,3407.7,3406.8,2.9353]
[1721351474980,3.0,3407.6,3406.8,2.9353]
[1721351475175,3.0,3407.6,3406.9,2.93521]
[1721351475417,2.93423,3408.1,3407.1,2.93496]
[1721351475625,2.93423,3408.1,3407.2,2.93495]
[1721351475924,3.101,3408.9,3407.3,5.2776521]
[1721351475925,0.00099146,3408.0,3407.3,5.2776521]
[1721351476114,0.00099146,3408.0,3407.3,5.21893]
[1721351476419,0.00099146,3408.0,3407.7,2.93451]
[1721351476783,0.00099146,3408.0,3407.6,2.93455]
[1721351476909,2.93375,3408.6,3407.6,3.49325905]
[1721351477090,2.93375,3408.6,3407.6,2.93455]
[1721351477291,0.0520991,3408.5,3407.6,2.93455]
[1721351477489,0.0520991,3408.5,3407.7,2.93452]
[1721351477898,2.9859991,3408.5,3407.5,2.93468]
[1721351478098,0.0520991,3408.5,3407.3,5.21895]
[1721351478323,3.385,3408.2,3407.3,5.740845]
[1721351478534,0.0520991,3408.5,3407.3,5.740845]
[1721351478737,0.04921046,3408.1,3407.3,5.740845]
[1721351479029,2.93411,3408.2,3407.3,5.740845]
[1721351479398,0.00135198,3408.1,3407.3,5.740845]
[1721351479712,2.93411,3408.2,3407.4,0.62382505]
[1721351479915,2.934,3408.4,3407.4,3.55860505]
[1721351480127,0.0011568,3408.1,3407.4,3.55860505]
[1721351480311,2.93377,3408.6,3407.7,2.93445]
[1721351480503,0.00131505,3408.0,3407.7,2.93445]
[1721351480701,2.93377,3408.6,3407.7,2.93445]
[1721351480903,0.00117685,3407.9,3407.7,2.93445]
[1721351481111,2.93377,3408.6,3407.7,2.93445]
[1721351481313,3.859005,3408.6,3407.8,2.2679]
[1721351481514,0.00185782,3408.5,3407.8,2.2679]
[1721351481800,2.9341,3408.2,3407.5,0.521895]
[1721351482002,2.93398,3408.4,3407.4,5.20268]
[1721351482235,0.00130509,3408.1,3407.4,5.20268]
[1721351482435,2.93582369,3408.3,3407.4,5.20268]
[1721351482646,2.93402,3408.3,3407.4,5.20268]
[1721351482851,3.6133365,3408.3,3407.4,2.2679]
[1721351483149,2.93425,3408.1,3407.4,2.2679]
[1721351483327,2.93428,3408.0,3407.4,2.2679]
[1721351483513,2.9358642,3408.0,3407.4,2.2679]
[1721351483842,2.93459,3407.7,3406.9,2.3796]
[1721351484000,2.93475,3407.5,3406.5,2.3796]
[1721351484206,2.93494,3407.3,3406.5,2.3796]
[1721351484407,2.93491,3407.3,3406.5,2.3796]
[1721351484716,3.385,3407.4,3406.5,2.3796]
[1721351484907,3.0,3407.3,3406.1,2.3796]
[1721351485107,2.93523,3406.9,3406.1,2.3796]
[1721351485332,2.93542,3406.7,3406.1,2.911174]
[1721351485538,2.93507,3407.1,3406.1,2.911174]
[1721351485744,2.93529,3406.9,3406.1,2.911174]
[1721351486469,3.385,3407.4,3406.1,2.911174]
[1721351486748,2.93469,3407.6,3406.6,2.93542]
[1721351486983,2.93476,3407.5,3406.6,2.93542]
[1721351487325,2.93453,3407.7,3406.6,2.93542]
[1721351487567,3.385,3407.9,3406.1,2.3796]
[1721351487568,3.631953,3407.6,3406.1,2.3796]
[1721351487774,2.93444,3407.8,3406.9,5.30997]
[1721351487775,2.93453,3407.7,3406.9,5.30997]
[1721351487929,3.0,3407.6,3406.9,5.30997]
[1721351488742,3.0,3407.6,3406.9,2.3748]
[1721351489080,2.93491,3407.3,3406.3,2.4796]
[1721351489229,2.93479,3407.4,3406.4,0.541538]
[1721351489429,3.0,3407.8,3406.3,2.4796]
[1721351489675,2.9346,3407.7,3406.8,2.93524]
[1721351489856,3.0,3407.8,3406.6,2.9354]
[1721351489857,5.93466,3407.6,3406.6,2.9354]
[1721351490026,2.93466,3407.6,3406.8,2.9353]
[1721351490232,4.160065,3407.6,3406.8,2.9353]
[1721351491092,1.225405,3407.6,3406.9,2.93521]
[1721351491393,5.93445,3407.8,3406.9,2.93521]
[1721351491595,2.93476,3407.5,3406.5,2.93549]
[1721351491916,2.93459,3407.7,3406.7,2.93533]
[1721351492085,3.0,3407.6,3406.8,2.9353]
[1721351492498,5.93462,3407.6,3406.6,2.93541]
[1721351492704,5.93462,3407.6,3406.4,2.93561]
[1721351492705,2.9349,3407.3,3406.4,2.93561]
[1721351492869,2.93501,3407.2,3406.3,2.4796]
[1721351493194,2.93501,3407.2,3405.7,3.101]
[1721351493195,2.93547,3406.7,3405.9,2.3626]
[1721351493394,2.93562,3406.5,3405.5,2.93638]
[1721351493592,2.9357,3406.4,3405.5,3.759935]
[1721351493900,2.93574,3406.3,3405.5,3.759935]
[1721351494106,2.98555727,3406.3,3405.5,3.759935]
[1721351494251,2.98555727,3406.3,3405.5,0.823555]
[1721351494252,2.93582,3406.2,3405.5,0.823555]
[1721351494451,0.04958602,3406.1,3405.5,0.823555]
[1721351494704,2.93582,3406.2,3405.5,0.823555]
[1721351494996,0.04955859,3406.0,3405.5,0.823555]
[1721351495146,0.04958602,3406.1,3405.5,0.823555]
[1721351495353,0.04953116,3405.9,3405.5,0.823555]
[1721351495550,2.93591,3406.1,3405.5,0.823555]
[1721351495786,0.04950373,3405.8,3404.9,5.31498]
[1721351495949,2.93609,3405.9,3404.9,5.31498]
[1721351496375,0.04950373,3405.8,3404.9,5.31498]
[1721351496549,0.04950373,3405.8,3405.1,2.93671]
[1721351496753,2.93591,3406.1,3405.3,2.93658]
[1721351497000,0.04929526,3405.7,3405.3,2.93658]
[1721351497167,2.93591,3406.1,3405.3,2.93658]
[1721351497375,0.04926782,3405.6,3405.3,2.93658]
[1721351497684,0.04924038,3405.5,3405.3,2.93658]
[1721351497853,3.385,3406.3,3405.3,3.55081905]
[1721351498053,0.04943241,3406.2,3405.3,3.55081905]
[1721351498285,2.93568,3406.4,3405.4,0.05872032]
[1721351498450,0.04925464,3406.1,3405.3,2.93658]
[1721351498649,3.0,3406.3,3405.3,2.93651]
[1721351498885,0.04923381,3406.0,3405.3,2.93651]
[1721351499089,3.0,3406.3,3405.5,2.9364]
[1721351499249,0.04920638,3405.9,3405.5,5.87275]
[1721351499452,3.0,3406.3,3405.5,3.523625]
[1721351499700,2.98517868,3406.2,3405.1,2.93673]
[1721351499899,2.93599,3406.0,3405.2,2.93668]
[1721351500387,0.04920639,3405.9,3405.2,2.93668]
[1721351500584,0.04920639,3405.9,3405.3,2.93659]
[1721351500785,2.93589,3406.2,3405.3,2.93659]
[1721351500985,0.04917896,3405.8,3405.3,3.523917]
[1721351501207,2.93589,3406.2,3405.3,3.523917]
[1721351501367,0.04915153,3405.7,3405.4,2.9365]
[1721351501572,2.93589,3406.2,3405.4,2.9365]
[1721351501981,2.93589,3406.2,3405.3,0.587327]
[1721351502191,2.93589,3406.2,3405.3,3.523917]
[1721351502519,2.93551,3406.6,3405.7,2.4329]
[1721351502874,3.0,3406.5,3405.7,2.4329]
[1721351503068,2.93556,3406.5,3405.7,2.4329]
[1721351503270,2.93544,3406.7,3405.7,3.22622635]
[1721351503466,2.93544,3406.7,3405.8,2.93615]
[1721351503984,2.93544,3406.7,3405.8,2.99486543]
[1721351504373,2.93544,3406.7,3405.8,2.93615]
[1721351505109,2.93544,3406.7,3405.8,2.99486543]
[1721351505407,2.93544,3406.7,3405.9,0.3523937]
[1721351505621,2.93544,3406.7,3405.9,3.2884637]
[1721351506494,6.32024,3406.9,3405.9,3.2884637]
[1721351506696,3.385,3406.9,3406.1,2.93585]
[1721351507425,2.93549,3406.6,3405.7,5.36911]
[1721351507623,6.32025,3406.9,3405.8,2.93615]
[1721351507924,2.93543,3406.7,3405.9,2.93606]
[1721351508334,0.0493343,3406.6,3405.9,2.93606]
[1721351511343,6.32024,3406.9,3406.0,2.93594]
[1721351511521,0.04930688,3406.5,3406.0,2.93594]
[1721351511837,2.93524,3406.9,3406.1,0.5872]
[1721351511986,0.04927945,3406.4,3406.1,0.5872]
[1721351512186,2.93524,3406.9,3406.1,0.5872]
[1721351512388,0.04925202,3406.3,3406.1,3.52309]
[1721351512640,3.0,3407.2,3406.3,2.93572]
[1721351512789,0.931988,3407.1,3406.3,2.93572]
[1721351512988,6.867068,3407.1,3406.3,2.93572]
[1721351513633,2.93513,3407.0,3406.1,6.45894]
[1721351513947,2.93513,3407.0,3406.2,2.93581]
[1721351514239,3.0,3407.1,3406.3,2.93572]
[1721351514621,2.93502,3407.2,3406.3,2.93572]
[1721351515435,2.93507,3407.1,3406.3,2.93572]
[1721351517698,2.93507,3407.1,3406.1,3.52302]
[1721351517918,2.93529,3406.9,3406.0,2.93598]
[1721351518242,2.93529,3406.9,3405.9,2.93603]
[1721351518243,2.93544,3406.7,3405.7,5.36907]
[1721351518395,2.93552,3406.6,3405.7,5.36907]
[1721351518824,2.93558,3406.5,3405.7,5.36907]
[1721351519025,5.87122,3406.5,3405.7,2.4329]
[1721351519240,3.123122,3406.5,3405.7,2.4329]
[1721351519446,2.93591,3406.1,3405.3,2.93655]
[1721351519742,2.93578,3406.3,3405.4,2.93649]
[1721351519894,2.93582,3406.2,3405.4,2.93649]
[1721351520089,2.93578,3406.3,3405.2,2.2502]
[1721351520090,2.93591,3406.1,3405.2,2.2502]
[1721351520775,2.93623,3405.8,3405.0,2.93683]
[1721351520906,2.93623,3405.8,3404.8,5.18714]
[1721351521112,2.98543206,3405.7,3404.9,2.93693]
[1721351523147,0.04918206,3405.7,3405.0,0.05872775]
[1721351523346,2.93583,3406.2,3405.2,2.9366]
[1721351523638,3.0,3406.1,3405.2,2.9366]
[1721351523837,3.04929691,3406.1,3405.3,2.93659]
[1721351524004,0.04929691,3406.1,3405.4,2.93649]
[1721351524208,0.04929691,3406.1,3405.5,2.2606]
[1721351524602,2.93592,3406.1,3405.5,2.2606]
[1721351524804,2.98515736,3406.0,3405.0,2.2793]
[1721351525003,2.93632,3405.7,3405.1,0.521619]
[1721351525236,2.93632,3405.7,3405.0,2.2793]
[1721351525602,0.04904763,3405.6,3405.0,2.2793]
[1721351527338,2.98541763,3405.6,3405.0,2.2793]
[1721351528454,0.04904763,3405.6,3405.0,2.2793]
[1721351528753,2.93609,3405.9,3405.1,2.93676]
[1721351528919,0.0489938,3405.5,3405.3,2.93658]
[1721351529118,2.93584,3406.2,3405.3,2.93658]
[1721351529603,3.04905553,3406.1,3405.3,2.93658]
[1721351529794,3.04905553,3406.1,3405.3,3.56069405]
[1721351530223,5.98497553,3406.1,3405.3,3.56069405]
[1721351530429,2.93599,3406.0,3405.3,0.62411405]
[1721351530628,2.93608,3405.9,3405.1,2.93672]
[1721351530795,0.04915277,3405.9,3405.1,2.93672]
[1721351530995,0.04915277,3405.9,3405.3,2.93659]
[1721351531219,5.93595,3406.1,3405.3,2.93659]
[1721351531448,0.0491054,3405.8,3405.1,2.93672]
[1721351531743,0.04907664,3405.7,3405.1,3.752011]
[1721351531909,2.9361,3405.9,3405.1,3.752011]
[1721351532241,0.04904921,3405.6,3405.1,0.815291]
[1721351532400,2.9362,3405.8,3405.0,5.21613]
[1721351532602,0.04906168,3405.5,3405.0,5.21613]
[1721351532801,2.9362,3405.8,3405.0,5.21613]
[1721351533433,0.04911655,3405.7,3405.0,5.21613]
[1721351534401,0.04911655,3405.7,3405.1,2.93677]
[1721351534603,0.04911655,3405.7,3405.2,0.81529]
[1721351534827,3.39632792,3406.0,3405.2,0.81529]
[1721351535027,0.04902941,3405.6,3405.2,3.75196]
[1721351535341,0.04900197,3405.5,3405.2,3.75196]
[1721351535701,3.39632792,3406.0,3405.2,3.75196]
[1721351535928,0.04897453,3405.4,3405.2,2.93667]
[1721351536243,3.39632792,3406.0,3405.2,2.93667]
[1721351536741,0.04911171,3405.9,3405.2,2.93667]
[1721351537304,0.04911171,3405.9,3405.0,5.21613]
[1721351537305,2.98519171,3405.9,3405.0,5.21607]
[1721351537500,0.04911171,3405.9,3405.0,5.21607]
[1721351538140,0.04911171,3405.9,3405.1,2.93675]
[1721351539008,0.04911171,3405.9,3405.1,3.752032]
[1721351539520,2.98519171,3405.9,3405.1,3.752032]
[1721351541322,0.04911171,3405.9,3405.1,3.752032]
[1721351543063,2.93623,3405.8,3405.0,2.2793]
[1721351543341,2.9364,3405.6,3404.7,2.9371]
[1721351543729,0.04918885,3405.5,3404.7,2.9371]
[1721351543932,2.98561885,3405.5,3404.7,2.9371]
[1721351544636,0.04918885,3405.5,3404.8,2.93701]
[1721351544832,0.04918885,3405.5,3405.2,2.9366]
[1721351545048,0.46032792,3406.0,3405.4,2.93643]
[1721351545261,2.93574,3406.3,3405.5,2.93638]
[1721351545572,5.93574,3406.3,3405.5,2.93638]
[1721351545738,5.93574,3406.3,3405.3,2.3011]
[1721351545923,5.93574,3406.3,3405.3,2.62929205]
[1721351546319,2.93601,3406.0,3405.3,2.3011]
[1721351546533,2.93592,3406.1,3405.3,2.3011]
[1721351546755,2.93592,3406.1,3405.3,5.23769]
[1721351547453,5.8719,3406.1,3405.3,5.23769]
[1721351547656,5.8719,3406.1,3405.3,2.3011]
[1721351547833,2.93609,3405.9,3405.1,2.93668]
[1721351548168,2.536,3406.0,3405.0,2.93685]
[1721351548169,2.93617,3405.8,3405.0,2.93685]
[1721351549071,2.93625,3405.7,3404.9,5.29249]
[1721351549267,5.47204,3406.0,3404.9,5.29249]
[1721351549426,2.93619,3405.8,3404.9,5.29249]
[1721351550176,0.66588617,3405.9,3404.9,5.29249]
[1721351550177,2.536,3405.6,3404.9,2.3556]
[1721351550322,2.93679,3405.1,3404.5,2.2529]
[1721351550527,2.93662,3405.3,3404.5,2.2529]
[1721351550729,2.93673,3405.2,3404.5,2.2529]
[1721351551073,2.93679,3405.1,3404.5,2.2529]
[1721351551821,5.87329,3405.3,3404.5,2.2529]
[1721351552023,0.840929,3405.3,3404.5,2.2529]
[1721351552357,2.93652,3405.4,3404.6,2.93719]
[1721351553042,0.04880344,3405.3,3404.6,2.93719]
[1721351554027,2.98540344,3405.3,3404.5,2.2529]
[1721351554431,2.98540344,3405.3,3404.5,5.19017]
[1721351555970,2.93681,3405.1,3404.5,2.2529]
[1721351556339,0.0488093,3405.0,3404.5,2.2529]
[1721351556543,2.536,3405.6,3404.8,2.93697]
[1721351556743,0.04869367,3404.9,3404.8,5.87394]
[1721351556975,5.47204,3406.0,3405.2,2.93667]
[1721351557260,2.536,3406.0,3404.6,2.3]
[1721351557473,2.9363,3405.7,3404.9,2.93686]
[1721351557631,2.93612,3405.9,3405.0,2.93684]
[1721351558060,5.47204,3406.0,3405.1,2.93676]
[1721351558061,2.536,3406.0,3405.1,2.93676]
[1721351558263,2.94151709,3406.4,3405.6,2.93633]
[1721351558264,8.41320709,3406.4,3405.6,2.93633]
[1721351558466,5.93200709,3406.4,3405.6,2.93633]
[1721351558978,2.99631709,3406.4,3405.6,2.93627]
[1721351559135,0.46031709,3406.4,3405.7,2.93617]
[1721351559541,3.39597709,3406.4,3405.4,2.93647]
[1721351559835,3.0,3406.3,3405.4,3.78851405]
[1721351560045,3.0,3406.3,3405.6,2.93629]
[1721351560577,3.0,3406.3,3405.6,2.93632]
[1721351560742,0.46031709,3406.4,3405.7,2.9362]
[1721351561073,3.46031709,3406.4,3405.7,2.9362]
[1721351561257,3.46031709,3406.4,3405.4,0.85204405]
[1721351561464,3.0,3406.3,3405.8,2.93609]
[1721351561766,5.47135,3406.8,3405.9,2.93601]
[1721351561971,3.0,3406.7,3405.9,2.93601]
[1721351562671,3.0,3406.7,3406.0,5.36597]
[1721351563238,4.1866694,3406.7,3406.0,5.36597]
[1721351564352,4.1866694,3406.7,3406.0,2.43]
[1721351564683,4.1866694,3406.7,3405.8,2.93609]
[1721351564684,7.1221194,3406.7,3405.8,2.93609]
[1721351565079,4.1866694,3406.7,3405.8,2.93609]
[1721351565289,4.1866694,3406.7,3406.0,2.93598]
[1721351565837,4.1866694,3406.7,3405.8,2.93609]
[1721351566058,0.71829434,3406.6,3405.8,2.93611]
[1721351567365,3.0,3406.7,3406.1,2.93585]
[1721351567665,2.99627401,3406.8,3406.1,2.93585]
[1721351567891,0.04942965,3406.7,3406.3,2.3739]
[1721351569458,0.04942965,3406.7,3406.4,2.9356]
[1721351569657,0.46027401,3406.8,3406.4,2.9356]
[1721351569901,0.04940652,3406.7,3406.4,2.9356]
[1721351570207,2.93496,3407.2,3406.4,2.9356]
[1721351570508,0.04941339,3406.6,3406.4,2.9356]
[1721351570675,2.93496,3407.2,3406.4,2.9356]
[1721351570879,2.93522,3406.9,3406.0,5.87187]
[1721351571077,2.93522,3406.9,3405.5,2.4466]
[1721351571078,2.93579,3406.3,3405.5,2.4466]
[1721351571262,2.536,3406.1,3405.5,2.93641]
[1721351571615,0.04936043,3406.0,3405.5,2.93641]
[1721351571959,2.536,3406.1,3405.4,2.9365]
[1721351572208,0.049333,3405.9,3405.4,2.9365]
[1721351572495,0.04930558,3405.8,3405.4,2.93644]
[1721351572672,2.536,3406.1,3405.5,2.93642]
[1721351573073,0.04934061,3406.0,3405.5,2.93642]
[1721351573692,2.93582,3406.2,3405.5,2.93642]
[1721351574033,0.04931439,3406.1,3405.5,2.93642]
[1721351574384,0.04931439,3406.1,3405.7,2.9362]
[1721351574584,2.536,3406.5,3405.5,2.93638]
[1721351574788,0.04928697,3406.0,3405.7,2.93623]
[1721351575032,3.293522,3406.8,3405.9,2.93608]
[1721351575232,2.0335869,3406.7,3405.9,2.93608]
[1721351575445,4.9690269,3406.7,3405.8,2.9361]
[1721351575622,3.0,3406.6,3405.8,2.9361]
[1721351575979,2.93599,3406.0,3405.2,5.38673]
[1721351576232,2.93599,3406.0,3405.2,2.4501]
[1721351576519,4.014364,3406.0,3405.2,2.4501]
[1721351576726,1.078374,3406.0,3405.2,5.38676]
[1721351576930,2.536,3406.1,3405.4,2.9365]
[1721351577127,2.536,3406.1,3405.2,8.32337]
[1721351577283,2.536,3406.1,3405.2,5.38671]
[1721351577484,2.536,3406.1,3405.4,2.93649]
[1721351578529,2.93566,3406.4,3405.5,2.93642]
[1721351578723,1.368068,3406.3,3405.5,2.93642]
[1721351579039,1.368068,3406.3,3405.5,2.93638]
[1721351580430,1.368068,3406.3,3405.2,5.38674]
[1721351580734,2.93583,3406.2,3405.4,2.93646]
[1721351580902,0.7239558,3406.1,3405.4,2.93646]
[1721351581435,0.7239558,3406.1,3405.5,2.93642]
[1721351581634,2.93621,3405.8,3405.0,2.93681]
[1721351582601,2.93633,3405.7,3404.9,2.93694]
[1721351582815,2.93634,3405.6,3404.7,2.93703]
[1721351583015,2.93634,3405.6,3404.6,5.87429]
[1721351583016,2.93652,3405.4,3404.6,5.87429]
[1721351583240,0.04896566,3405.5,3404.8,2.93701]
[1721351583440,0.04891078,3405.3,3404.8,2.93701]
[1721351583645,0.04893822,3405.4,3404.8,2.93701]
[1721351583937,0.04891078,3405.3,3404.8,2.93701]
[1721351584241,0.04891078,3405.3,3404.6,2.93713]
[1721351584548,0.04888334,3405.2,3404.6,2.93713]
[1721351584900,2.93664,3405.3,3404.4,2.3018]
[1721351585098,0.04888334,3405.2,3404.5,2.93727]
[1721351585541,0.04888334,3405.2,3404.4,2.3018]
[1721351585847,2.93683,3405.1,3404.4,2.3018]
[1721351586144,2.9856415,3405.0,3404.3,0.61613111]
[1721351586346,0.29856415,3404.9,3404.3,0.61613111]
[1721351586845,0.04871077,3404.8,3404.3,0.61613111]
[1721351587741,0.04871077,3404.8,3404.3,3.55357111]
[1721351588110,2.93679,3405.1,3404.3,3.55357111]
[1721351588329,2.93694,3404.9,3404.3,0.61613111]
[1721351588533,0.04868569,3404.8,3404.3,0.61613111]
[1721351589000,2.98572569,3404.8,3404.3,0.61613111]
[1721351589200,3.57799226,3404.8,3404.3,0.61613111]
[1721351589613,2.93711,3404.7,3404.3,0.61613111]
[1721351590046,0.04861053,3404.6,3404.3,0.61613111]
[1721351590603,0.04861053,3404.6,3403.8,2.93786]
[1721351590820,2.93729,3404.5,3403.6,5.22189]
[1721351591059,2.93729,3404.5,3403.8,2.93784]
[1721351591060,0.04843423,3404.5,3403.8,2.93784]
[1721351591408,2.93711,3404.7,3403.9,2.9378]
[1721351591606,0.04841186,3404.4,3403.9,2.9378]
[1721351591801,4.06797466,3404.7,3403.9,2.9378]
[1721351592005,0.04838441,3404.3,3403.9,2.9378]
[1721351592287,1.13086466,3404.7,3404.0,2.93771]
[1721351592543,0.04830415,3404.2,3403.9,2.93779]
[1721351592729,4.06805466,3404.7,3403.9,2.93779]
[1721351593043,0.95410247,3404.6,3403.9,2.93779]
[1721351593250,1.00251643,3404.6,3403.9,2.93774]
[1721351593455,0.04841396,3404.6,3404.0,2.9377]
[1721351593656,0.04841396,3404.6,3404.1,2.93762]
[1721351593814,5.47295,3404.9,3404.1,2.93762]
[1721351594145,0.04838651,3404.5,3404.1,2.93762]
[1721351594358,0.04846886,3404.8,3404.1,2.93762]
[1721351594510,0.54552175,3404.8,3404.1,2.93762]
[1721351594845,2.93722,3404.6,3403.8,2.93782]
[1721351595231,0.04838651,3404.5,3403.9,2.9378]
[1721351596164,0.49705289,3404.8,3403.9,2.9378]
[1721351596471,0.49705289,3404.8,3403.7,2.93794]
[1721351596472,0.04835906,3404.4,3403.7,2.9379]
[1721351596675,3.76480329,3404.7,3403.7,2.9379]
[1721351596676,2.93735,3404.5,3403.7,2.9379]
[1721351596851,0.04833161,3404.3,3403.7,2.9379]
[1721351597167,0.04830121,3404.2,3403.7,2.9379]
[1721351597479,2.93735,3404.5,3403.7,2.9379]
[1721351597676,0.04827375,3404.1,3403.7,2.9379]
[1721351597970,0.0482463,3404.0,3403.8,2.93787]
[1721351598172,2.9372,3404.6,3403.7,5.8758]
[1721351598470,2.9372,3404.6,3403.7,2.9379]
[1721351598471,0.04823355,3403.9,3403.7,2.9379]
[1721351598651,2.9372,3404.6,3403.8,2.93789]
[1721351598855,0.72618862,3404.5,3403.8,2.93789]
[1721351600575,3.26218862,3404.5,3403.6,5.22189]
[1721351600736,3.26218862,3404.5,3403.5,2.9381]
[1721351600737,2.9374,3404.4,3403.5,2.9381]
[1721351601080,2.536,3403.7,3402.8,2.93875]
[1721351601287,5.47432,3403.3,3402.4,5.31193]
[1721351601445,2.93846,3403.2,3402.4,5.31193]
[1721351601789,2.536,3403.3,3402.4,8.25096]
[1721351602089,2.536,3403.3,3402.4,5.31193]
[1721351602388,2.93822,3403.5,3402.7,2.93883]
[1721351602874,2.93822,3403.5,3402.0,2.93941]
[1721351602875,2.93872,3402.9,3402.0,5.24859]
[1721351603589,2.93872,3402.9,3402.0,2.93939]
[1721351603938,2.93872,3402.9,3402.1,2.9393]
[1721351604139,2.93859,3403.0,3402.1,2.9393]
[1721351604432,2.93853,3403.1,3402.2,2.93926]
[1721351604636,0.841287,3403.0,3402.2,2.93926]
[1721351604889,3.779877,3403.0,3402.2,2.93926]
[1721351605069,2.93868,3402.9,3402.0,2.93937]
[1721351605283,3.779917,3403.0,3402.1,2.93935]
[1721351605442,0.841287,3403.0,3402.0,2.93937]
[1721351605774,5.47474,3402.9,3402.1,2.93934]
[1721351605950,2.536,3402.9,3402.2,2.93925]
[1721351606378,2.536,3402.9,3402.0,5.87874]
[1721351606577,2.536,3402.9,3402.1,2.93934]
[1721351606874,2.536,3402.9,3402.2,2.93925]
[1721351609070,2.536,3402.9,3402.3,2.93918]
[1721351610576,5.47434,3403.3,3402.5,2.93894]
[1721351610773,5.47434,3403.3,3402.3,2.93918]
[1721351610774,3.593834,3403.2,3402.3,2.93918]
[1721351610942,6.532244,3403.2,3402.4,2.93908]
[1721351611570,3.593834,3403.2,3402.4,2.93908]
[1721351611888,0.9068144,3403.1,3402.5,2.939]
[1721351612749,0.04598306,3403.0,3402.5,2.939]
[1721351613172,0.04598306,3403.0,3402.3,2.93918]
[1721351613387,2.98457306,3403.0,3402.1,2.9393]
[1721351613879,2.536,3402.9,3402.2,2.93927]
[1721351614246,0.04595755,3402.8,3402.2,2.93927]
[1721351614548,0.04595755,3402.8,3402.3,2.93917]
[1721351615168,2.3461,3402.7,3401.6,2.93976]
[1721351615351,2.93898,3402.6,3401.8,2.93957]
[1721351615554,2.3461,3402.7,3401.8,2.93957]
[1721351615555,2.39179129,3402.7,3401.9,2.93947]
[1721351615796,0.04563633,3402.5,3401.9,2.93947]
[1721351615963,3.80616328,3402.6,3401.8,2.93954]
[1721351617167,3.80616328,3402.6,3401.6,2.93976]
[1721351617168,2.536,3402.1,3401.3,2.94001]
[1721351617403,3.486973,3402.0,3401.1,2.94022]
[1721351617683,2.93984,3401.6,3400.7,2.94051]
[1721351617884,2.93984,3401.6,3400.8,2.94047]
[1721351618085,2.98547051,3401.5,3400.6,2.94059]
[1721351618380,2.98547051,3401.5,3400.7,2.94056]
[1721351618749,3.83158856,3401.5,3400.7,2.94056]